Cogmind - Beta 15 @@@ ROGUE MODE // 2025.10.12 @ 11:59:15 Player: microsand Result: Destroyed by S-43 Plague with Heavy Machine Gun Performance ------------- Evolutions (7) 3500 Regions Visited (13) 2600 Robots Destroyed (57) 285 Value Destroyed (1446) 1446 Prototype IDs (26) 520 Alien Tech Used (0) 0 Bonus (354) 354 TOTAL SCORE: 8705 Bonus ------- Follower Combat Kills 54 Aligned with FarCom 300 Cogmind --------- Core Integrity 0/1300 Matter 39/300 Energy 100/100 System Corruption 1% Temperature Cool (0) Movement Core (50) Location -3/Research Parts ------- > --- POWER (3) -------- (None) > --- PROPULSION (4) --- (None) > --- UTILITY (12) ----- Enhanced Optical Array Launcher Guidance Computer > --- WEAPON (2) ------- (None) > --- INVENTORY (5) ---- Improved Signal Interpreter Improved Kinecellerator Phase Shifter Hacking Suite Improved Grenade Launcher Peak State ------------ > --- POWER ------------ Micro Nuclear Core > --- PROPULSION ------- VTOL Module VTOL Module Cesium-ion Thruster Xenon Bombardment Thruster > --- UTILITY ---------- High-capacity Storage Unit Weight Redist. System Launcher Guidance Computer Cloak of Protection Heavy Armor Plating Hacking Suite Splice Drone Bay > --- WEAPON ----------- High-powered Shotgun Flak Cannon > --- INVENTORY -------- Improved Ion Engine Nuclear Core Light Nuclear Core Light Nuclear Core Light Nuclear Core Light Angular Momentum Engine Light Treads Flight Unit VTOL Module Enhanced Optical Array Core Analyzer Light Armor Plating Hacking Suite Beam Rifle Heavy Assault Rifle Improved Grenade Launcher [Rating: 56] Favorites ----------- Power Light Angular Momentum Engine Engine Light Angular Momentum Engine Power Core Light Nuclear Core Propulsion Carbon-fiber Leg Treads Improved Treads Leg Carbon-fiber Leg Flight Unit Flight Unit Utility Weight Redist. System Device Weight Redist. System Storage High-capacity Storage Unit Processor Launcher Guidance Computer Hackware Hacking Suite Protection Heavy Armor Plating Weapon Heavy Assault Rifle Energy Gun Small Laser Ballistic Gun Heavy Assault Rifle Ballistic Cannon Flak Cannon Launcher Rocket Launcher Special Weapon Remote Datajack Build | -11 -10 -10 -10 -9 -8 -8 -8 -8 -6 -5 -5 -4 -3 ------- Run | Yrd Mat Min Exi Min Mat Sto Rec Scr Fac Fac Ext Fac Res Slots Evolved 14 | . . . . . 4 . . . 4 2 . 2 2 Power 2 | . . . . . . . . . . 1 . 1 . Propulsion 2 | . . . . . . . . . 2 . . . . Utility 10 | . . . . . 4 . . . 2 1 . 1 2 Weapon . | . . . . . . . . . . . . . . Parts Attached 61 | 6 7 7 3 1 6 12 1 2 8 5 1 . 2 Power 9 | 1 . 1 . . 1 4 . . 1 1 . . . Engine 3 | 1 . . . . . 2 . . . . . . . Core 6 | . . 1 . . 1 2 . . 1 1 . . . Reactor . | . . . . . . . . . . . . . . Propulsion 23 | 2 3 1 1 . 1 5 . . 5 3 1 . 1 Treads 4 | . 2 1 . . . 1 . . . . . . . Leg 7 | 2 1 . . . . 4 . . . . . . . Wheel . | . . . . . . . . . . . . . . Hover . | . . . . . . . . . . . . . . Flight 12 | . . . 1 . 1 . . . 5 3 1 . 1 Utility 16 | 1 3 . 2 1 4 1 . 1 2 1 . . . Device 6 | . 2 . 2 . 1 . . . . 1 . . . Storage 3 | 1 1 . . 1 . . . . . . . . . Processor 3 | . . . . . . . . 1 2 . . . . Hackware 1 | . . . . . 1 . . . . . . . . Protection 3 | . . . . . 2 1 . . . . . . . Artifact . | . . . . . . . . . . . . . . Weapon 13 | 2 1 5 . . . 2 1 1 . . . . 1 Energy Gun 2 | . 1 1 . . . . . . . . . . . Energy Cannon . | . . . . . . . . . . . . . . Ballistic Gun 8 | 2 . 3 . . . 2 1 . . . . . . Ballistic Cannon 1 | . . . . . . . . 1 . . . . . Launcher 1 | . . 1 . . . . . . . . . . . Special Weapon 1 | . . . . . . . . . . . . . 1 Impact Weapon . | . . . . . . . . . . . . . . Slashing Weapon . | . . . . . . . . . . . . . . Piercing Weapon . | . . . . . . . . . . . . . . Special Melee Weapon . | . . . . . . . . . . . . . . Unidentified Prototypes 3 | . . . . . 1 . . . . . 1 . 1 Parts Lost 26 | . 1 4 . . . 2 . . 8 3 4 . 4 Power 3 | . . 1 . . . . . . . 1 1 . . Propulsion 11 | . . 1 . . . 1 . . 4 1 2 . 2 Utility 7 | . . . . . . 1 . . 3 1 1 . 1 Weapon 5 | . 1 2 . . . . . . 1 . . . 1 Highest Loss Streak 7 | . 1 1 . . . 1 . . 7 3 4 . 2 To Critical Strikes . | . . . . . . . . . . . . . . Average Backups 11 | 1 6 13 4 5 3 7 14 19 16 4 4 4 4 Power 2 | . . . . . . 2 5 5 5 . . . . Propulsion 3 | . 1 3 . . 1 2 5 6 3 . . . . Utility 3 | . 3 6 4 4 1 1 2 4 3 2 3 3 3 Weapon 1 | . 1 1 . . . . 2 2 2 1 1 1 1 Tool/Special . | . . . . . . . . . . . . . . Unused Backups 19 | . . 10 . . . . . . 2 1 . . 6 Power 1 | . . . . . . . . . . . . . 1 Propulsion 6 | . . 4 . . . . . . 1 1 . . . Utility 7 | . . 3 . . . . . . . . . . 4 Weapon 3 | . . 1 . . . . . . 1 . . . 1 Tool/Special 2 | . . 2 . . . . . . . . . . . Average Slot Usage (%) 83 | . 99 83 19 42 69 94 88 89 82 40 27 21 18 Engine 5 | . 13 2 . . . . 9 9 1 3 1 . . Core 3 | . . 10 . . 4 8 . . 4 3 . . . Treads 7 | . 21 18 . . . 5 . . . . . . . Leg 8 | . 5 . . . . 8 18 18 11 . . . . Flight 3 | . . . 8 14 13 4 . . 11 9 7 5 4 Device 14 | . 13 13 11 17 25 26 18 10 14 . . . . Storage 9 | . 14 13 . 10 9 9 9 9 5 . . . . Processor 3 | . . . . . . . . 7 6 17 17 15 12 Hackware 4 | . . . . . 8 9 9 9 6 5 1 . . Protection 4 | . . . . . 9 8 9 9 5 . . . . Energy Gun 2 | . 9 6 . . . . . . . . . . . Ballistic Gun 11 | . 18 11 . . . 14 16 10 5 . . . . Ballistic Cannon 2 | . . . . . . . . 7 5 . . . . Peak Build Rating 56 | 6 11 15 11 12 27 38 39 40 56 38 29 19 28 Average Rating 25 | 5 9 11 5 11 24 31 38 38 46 29 21 19 20 On Entrance 18 | . 6 11 . 11 11 27 37 34 38 17 29 19 19 Naked Turns 83 | . . 22 61 . . . . . . . . . . Heaviest Build 89 | 14 28 31 8 48 62 78 78 78 89 24 7 . 3 Greatest Support 56 | 20 52 52 10 4 14 36 36 36 56 18 12 6 6 Greatest Overweight (x) 15 | . 2 1 1 15 6 6 2 2 9 3 . . . Average Overweight (x) . | . . . . 5 4 2 1 1 1 . . . . Largest Inventory Capacity 20 | 8 15 15 5 20 20 20 20 20 20 5 5 5 5 Average Capacity 16 | 7 12 14 5 15 20 20 20 20 19 5 5 5 5 Most Carried 20 | 5 13 15 5 7 6 15 17 20 20 5 5 4 5 Average Carried 11 | 1 7 13 4 5 3 7 14 19 16 4 4 4 4 Final Capacity 20 | 8 15 5 5 20 20 20 20 20 5 5 5 5 5 Final Carried 20 | 2 13 5 4 7 4 13 17 20 4 4 4 4 5 Class Distribution -------------------- 85% | Mutant 14% | Scavenger-Mutant Dominant Class ---------------- Mutant | -10/Materials Mutant | -10/Mines Mutant | -10/Exiles Mutant | -9/Mines Mutant | -8/Materials Scavenger-Mutant | -8/Storage Mutant | -8/Recycling Mutant | -8/Scraptown Mutant | -6/Factory Mutant | -5/Factory Mutant | -5/Extension Mutant | -4/Factory Mutant | -3/Research Resources | -11 -10 -10 -10 -9 -8 -8 -8 -8 -6 -5 -5 -4 -3 ----------- Run | Yrd Mat Min Exi Min Mat Sto Rec Scr Fac Fac Ext Fac Res Matter Collected 1740 | 326 492 189 . 53 . 419 61 58 109 12 21 . . Remotely . | . . . . . . . . . . . . . . Salvage Created 2276 | 118 1047 350 . . . 534 75 . 152 . . . . Parts 138 | 7 53 26 . . . 34 3 . 15 . . . . Haulers Intercepted . | . . . . . . . . . . . . . . Recyclers Shooed 8 | 1 5 1 . . . 1 . . . . . . . Parts Field Recycled 1 | . . . . . . . . . . 1 . . . Retrieved Matter 4 | . . . . . . . . . . 4 . . . Parts Self-Destructed . | . . . . . . . . . . . . . . Prevented . | . . . . . . . . . . . . . . Kills | -11 -10 -10 -10 -9 -8 -8 -8 -8 -6 -5 -5 -4 -3 ------- Run | Yrd Mat Min Exi Min Mat Sto Rec Scr Fac Fac Ext Fac Res Combat Hostiles Destroyed 36 | . 12 9 . . . 7 2 . 6 . . . . Guns 35 | . 12 9 . . . 7 2 . 5 . . . . Cannons 1 | . . . . . . . . . 1 . . . . Classes Destroyed 11 | 2 5 2 . . . 1 . . 1 . . . . Worker 5 | . 2 . . . . 2 . . 1 . . . . Builder 1 | . . 1 . . . . . . . . . . . Tunneler 3 | 2 1 . . . . . . . . . . . . Recycler 8 | 1 6 . . . . 1 . . . . . . . Operator 2 | . 2 . . . . . . . . . . . . Watcher 2 | . 2 . . . . . . . . . . . . Swarmer 10 | . 3 3 . . . . 1 . 3 . . . . Grunt 17 | . 9 4 . . . 3 1 . . . . . . Sentry 6 | . . 2 . . . 3 . . 1 . . . . Hunter 1 | . . . . . . 1 . . . . . . . Programmer 2 | . . . . . . . . . 2 . . . . Best Kill Streak 5 | 2 5 3 . . . 2 2 . 3 . . . . Combat Bots Only 5 | . 5 3 . . . 1 2 . 3 . . . . Max Kills in Single Turn 1 | 1 1 1 . . . 1 1 . 1 . . . . Gunslinging . | . . . . . . . . . . . . . . Exploded . | . . . . . . . . . . . . . . Melee . | . . . . . . . . . . . . . . Uniques/NPCs Destroyed . | . . . . . . . . . . . . . . Combat | -11 -10 -10 -10 -9 -8 -8 -8 -8 -6 -5 -5 -4 -3 -------- Run | Yrd Mat Min Exi Min Mat Sto Rec Scr Fac Fac Ext Fac Res Hostile Shots Fired 528 | . 66 57 . . . 62 14 . 114 12 49 . 154 Missed 214 | . 21 10 . . . 16 3 . 42 8 29 . 85 Hits 314 | . 45 47 . . . 46 11 . 72 4 20 . 69 Melee 1 | . . 1 . . . . . . . . . . . Projectile 313 | . 45 46 . . . 46 11 . 72 4 20 . 69 AOE 9 | . . 9 . . . . . . . . . . . Critical Strikes 11 | . . 3 . . . 4 . . 1 1 . . 2 Actively Blocked 2 | . . . . . . 2 . . . . . . . Damage Taken 5572 | . 516 827 . . . 722 126 . 1047 213 535 . 1586 Core 2307 | . 97 135 . . . 28 6 . 201 131 395 . 1314 Absorbed by Shields . | . . . . . . . . . . . . . . Redirected to Shielding 51 | . . . . . . 51 . . . . . . . Core Remaining (%) 70 | 100 . . . 7 . . . 93 76 . 47 100 . Volleys Fired 202 | 11 82 36 . . . 48 6 . 19 . . . . Largest 2 | 2 2 2 . . . 2 2 . 2 . . . . Hottest 83 | 40 60 83 . . . 46 46 . 62 . . . . Shots Fired 362 | 22 154 60 . . . 76 13 . 37 . . . . Gun 339 | 22 154 56 . . . 76 13 . 18 . . . . Cannon 19 | . . . . . . . . . 19 . . . . Launcher 4 | . . 4 . . . . . . . . . . . Special . | . . . . . . . . . . . . . . Kinetic 313 | 22 123 42 . . . 76 13 . 37 . . . . Thermal 45 | . 31 14 . . . . . . . . . . . Explosive 4 | . . 4 . . . . . . . . . . . Electromagnetic . | . . . . . . . . . . . . . . Robot Hit Streak 12 | 8 11 6 . . . 12 4 . 6 . . . . Robot Miss Streak 7 | 3 6 7 . . . 3 2 . 7 . . . . Penetration Max . | . . . . . . . . . . . . . . Secondary Targets 3 | . 2 1 . . . . . . . . . . . Max Gunslinging Chain 1 | . 1 1 . . . . . . . . . . . Shots Hit Robots 236 | 13 97 40 . . . 52 6 . 28 . . . . Core Hits 115 | 4 47 24 . . . 22 2 . 16 . . . . Critical Kills . | . . . . . . . . . . . . . . Critical Parts Destroyed . | . . . . . . . . . . . . . . Critical Strikes . | . . . . . . . . . . . . . . Melee Attacks . | . . . . . . . . . . . . . . Impact . | . . . . . . . . . . . . . . Slashing . | . . . . . . . . . . . . . . Piercing . | . . . . . . . . . . . . . . Sneak Attacks . | . . . . . . . . . . . . . . Combat Hostiles . | . . . . . . . . . . . . . . Follow-up Attacks . | . . . . . . . . . . . . . . Damage Inflicted 3380 | 164 1257 636 . . . 768 82 . 473 . . . . Guns 2953 | 164 1257 442 . . . 768 82 . 240 . . . . Cannons 233 | . . . . . . . . . 233 . . . . Explosions 188 | . . 188 . . . . . . . . . . . Melee . | . . . . . . . . . . . . . . Ramming 6 | . . 6 . . . . . . . . . . . Kinetic 2891 | 164 1069 335 . . . 768 82 . 473 . . . . Thermal 295 | . 188 107 . . . . . . . . . . . Explosive 188 | . . 188 . . . . . . . . . . . Electromagnetic . | . . . . . . . . . . . . . . Impact . | . . . . . . . . . . . . . . Slashing . | . . . . . . . . . . . . . . Piercing . | . . . . . . . . . . . . . . Highest Corruption 3 | . . . . . . 3 3 3 3 . . . 1 Average Corruption 2 | . . . . . . 2 3 3 1 . . . 1 Corruption Purged . | . . . . . . . . . . . . . . Corruption Blocked . | . . . . . . . . . . . . . . Effects 55 | . . . . . . 31 15 . 7 . . . 2 Message Errors 17 | . . . . . . 9 7 . 1 . . . . Matter Fused 12 | . . . . . . 3 3 . 4 . . . 2 Heat Flow Errors 8 | . . . . . . 6 1 . 1 . . . . Energy Discharges 6 | . . . . . . 4 1 . 1 . . . . Parts Fused 1 | . . . . . . 1 . . . . . . . Data Loss (minor) 3 | . . . . . . 1 2 . . . . . . Data Loss (major) 2 | . . . . . . 2 . . . . . . . Misfires 4 | . . . . . . 3 1 . . . . . . Alerts 1 | . . . . . . 1 . . . . . . . Weapon Failures 1 | . . . . . . 1 . . . . . . . Overload Shots . | . . . . . . . . . . . . . . Overflow Damage . | . . . . . . . . . . . . . . Projectiles . | . . . . . . . . . . . . . . Explosions . | . . . . . . . . . . . . . . Melee . | . . . . . . . . . . . . . . Knockbacks 8 | . . . . . . . . . 8 . . . . Impact . | . . . . . . . . . . . . . . Kinetic 8 | . . . . . . . . . 8 . . . . Secondary . | . . . . . . . . . . . . . . Self-Inflicted Damage 42 | . . 42 . . . . . . . . . . . Shots 1 | . . 1 . . . . . . . . . . . Rammed 2 | . . 2 . . . . . . . . . . . Targets Rammed 2 | . . 2 . . . . . . . . . . . Kicked . | . . . . . . . . . . . . . . Crushed . | . . . . . . . . . . . . . . Highest Temperature 286 | . 9 119 . . . 262 257 . 159 . . . 286 Average Temperature 55 | . 3 33 . . . 72 78 . 38 . . . 146 Received Heat Transfer 1047 | . 234 225 . . . 315 54 . 30 . 108 . 81 Siege Activations . | . . . . . . . . . . . . . . Martial Activations . | . . . . . . . . . . . . . . Shielding Activations . | . . . . . . . . . . . . . . Robots Disrupted . | . . . . . . . . . . . . . . Combat Hostiles . | . . . . . . . . . . . . . . Robots Corrupted . | . . . . . . . . . . . . . . Combat Hostiles . | . . . . . . . . . . . . . . Parts Fried . | . . . . . . . . . . . . . . Impact Corruptions . | . . . . . . . . . . . . . . Robots Melted . | . . . . . . . . . . . . . . Combat Hostiles . | . . . . . . . . . . . . . . Parts Melted 2 | . . 1 . . . 1 . . . . . . . Heat Transferred 734 | . 425 309 . . . . . . . . . . . Parts Sabotaged . | . . . . . . . . . . . . . . Parts Stolen . | . . . . . . . . . . . . . . Parts Stripped . | . . . . . . . . . . . . . . Power Chain Reactions . | . . . . . . . . . . . . . . Alert | -11 -10 -10 -10 -9 -8 -8 -8 -8 -6 -5 -5 -4 -3 ------- Run | Yrd Mat Min Exi Min Mat Sto Rec Scr Fac Fac Ext Fac Res Maximum Alert Level 2 | . . . . . . . . . . . 1 . 2 Low Security (%) 99 | 100 100 100 . 100 100 100 100 . 100 100 91 100 84 Level 1 . | . . . . . . . . . . . 8 . 15 Level 2 . | . . . . . . . . . . . . . . Level 3 . | . . . . . . . . . . . . . . Level 4 . | . . . . . . . . . . . . . . Level 5 . | . . . . . . . . . . . . . . High Security . | . . . . . . . . . . . . . . Max Security . | . . . . . . . . . . . . . . Peak Influence 400 | 5 144 60 . 86 . 37 31 . 95 70 210 98 400 Initial 98 | . . . . . . . 3 . . . 16 98 45 Average 18 | . 30 9 . 12 . 6 1 . 17 12 54 95 80 Influence Increases 2171 | 15 407 274 . 86 . 251 41 . 225 105 242 . 525 Destroy 0b10 Robot/C 800 | . 240 180 . 60 . 160 40 . 120 . . . . Destroy 0b10 Robot/NC 110 | 15 65 5 . 5 . 15 . . 5 . . . . Destroy Leader 204 | . 64 30 . 10 . 60 . . 40 . . . . Allied During Kill 12 | . . . . 11 . 1 . . . . . . . Successful Hack 7 | . 5 . . . . . . . . . 2 . . Destroy Structure 33 | . 3 29 . . . . 1 . . . . . . Partial Spotted 60 | . . . . . . . . . . 15 . . 45 Lose Combat Pursuer 945 | . 30 30 . . . 15 . . 60 90 240 . 480 Influence Decreases 1781 | 15 407 262 12 86 . 241 51 . 225 70 77 112 223 Entered New Map 183 | . . . 12 . . . 7 . . . 19 102 43 Time Decay 1420 | 15 397 222 . 86 . 236 44 . 180 40 50 10 140 Lost Part 138 | . 10 40 . . . . . . 10 30 8 . 40 Lost Ally 40 | . . . . . . 5 . . 35 . . . . Squads Dispatched 12 | . 2 . . . . 1 . . 4 1 . . 4 Investigation 1 | . . . . . . . . . 1 . . . . Extermination 7 | . . . . . . . . . 3 1 . . 3 Reinforcement 4 | . 2 . . . . 1 . . . . . . 1 Assault . | . . . . . . . . . . . . . . Garrison . | . . . . . . . . . . . . . . Intercept . | . . . . . . . . . . . . . . Searches Triggered . | . . . . . . . . . . . . . . Construction Impeded . | . . . . . . . . . . . . . . Haulers Reinforced . | . . . . . . . . . . . . . . Active Scanning Responses . | . . . . . . . . . . . . . . Cargo Convoy Interrupts . | . . . . . . . . . . . . . . Stealth | -11 -10 -10 -10 -9 -8 -8 -8 -8 -6 -5 -5 -4 -3 --------- Run | Yrd Mat Min Exi Min Mat Sto Rec Scr Fac Fac Ext Fac Res Distress Signals 8 | . . . . . . 3 . . . 2 2 . 1 Communications Jammed . | . . . . . . . . . . . . . . Distress Signals . | . . . . . . . . . . . . . . Times Spotted 141 | . 24 16 . . . 13 2 . 9 10 22 . 45 Peak Tracking Total 15 | . 5 9 . . . 4 2 . 3 7 15 . 15 Tactical Retreats 21 | . 1 2 . . . 1 . . 2 3 4 . 8 Traps | -11 -10 -10 -10 -9 -8 -8 -8 -8 -6 -5 -5 -4 -3 ------- Run | Yrd Mat Min Exi Min Mat Sto Rec Scr Fac Fac Ext Fac Res Traps Triggered 6 | . 4 . . . . 2 . . . . . . . Indirectly . | . . . . . . . . . . . . . . Trap Hack Attempts . | . . . . . . . . . . . . . . Triggered . | . . . . . . . . . . . . . . Disarmed . | . . . . . . . . . . . . . . Reprogrammed . | . . . . . . . . . . . . . . Reused . | . . . . . . . . . . . . . . Traps Extracted . | . . . . . . . . . . . . . . Installed . | . . . . . . . . . . . . . . Triggered . | . . . . . . . . . . . . . . Machines | -11 -10 -10 -10 -9 -8 -8 -8 -8 -6 -5 -5 -4 -3 ---------- Run | Yrd Mat Min Exi Min Mat Sto Rec Scr Fac Fac Ext Fac Res Machines Disabled 1 | . . 1 . . . . . . . . . . . Max in Single Turn 1 | . . 1 . . . . . . . . . . . Machines Repaired . | . . . . . . . . . . . . . . Machines Dismantled . | . . . . . . . . . . . . . . Machines Sabotaged . | . . . . . . . . . . . . . . Overloaded Fab Kills . | . . . . . . . . . . . . . . Hacking | -11 -10 -10 -10 -9 -8 -8 -8 -8 -6 -5 -5 -4 -3 --------- Run | Yrd Mat Min Exi Min Mat Sto Rec Scr Fac Fac Ext Fac Res Machines Accessed 14 | . 4 . 2 1 . 1 1 1 3 . 1 . . Terminals 10 | . 4 . . . . 1 1 . 3 . 1 . . Fabricators . | . . . . . . . . . . . . . . Repair Stations . | . . . . . . . . . . . . . . Recycling Units . | . . . . . . . . . . . . . . Scanalyzers . | . . . . . . . . . . . . . . Garrison Access . | . . . . . . . . . . . . . . Total Hacks 24 | . 8 . 5 1 . 1 2 1 5 . 1 . . Successful 14 | . 2 . 5 1 . 1 1 1 2 . 1 . . Failed 10 | . 6 . . . . . 1 . 3 . . . . Catastrophic 2 | . 2 . . . . . . . . . . . . Database Lockouts . | . . . . . . . . . . . . . . Manual 16 | . 8 . 1 . . 2 1 . 4 . . . . Terminals 17 | . 8 . . . . 1 2 . 5 . 1 . . Fabricators . | . . . . . . . . . . . . . . Repair Stations . | . . . . . . . . . . . . . . Recycling Units . | . . . . . . . . . . . . . . Scanalyzers . | . . . . . . . . . . . . . . Garrison Access . | . . . . . . . . . . . . . . Terminal Hacks 11 | . . . 5 1 . 1 1 1 1 . 1 . . Record 7 | . . . 4 . . . 1 1 . . 1 . . Open Door 2 | . . . . 1 . 1 . . . . . . . Open DSF 1 | . . . . . . . . . 1 . . . . Proto ID Catalog 1 | . . . 1 . . . . . . . . . . Fabricator Hacks . | . . . . . . . . . . . . . . Repair Station Hacks . | . . . . . . . . . . . . . . Recycling Unit Hacks . | . . . . . . . . . . . . . . Scanalyzer . | . . . . . . . . . . . . . . Garrison Access Hacks . | . . . . . . . . . . . . . . Unauthorized Hacks 3 | . 2 . . . . . . . 1 . . . . Terminals 3 | . 2 . . . . . . . 1 . . . . Botnet 3 | . 2 . . . . . . . 1 . . . . Fabricators . | . . . . . . . . . . . . . . Repair Stations . | . . . . . . . . . . . . . . Recycling Units . | . . . . . . . . . . . . . . Scanalyzers . | . . . . . . . . . . . . . . Garrison Access . | . . . . . . . . . . . . . . Data Cores Recovered . | . . . . . . . . . . . . . . Used . | . . . . . . . . . . . . . . Hacking Detections 7 | . 2 . . . . 1 1 . 2 . 1 . . Full Trace Events 1 | . . . . . . . . . 1 . . . . Feedback Events . | . . . . . . . . . . . . . . Feedback Blocked . | . . . . . . . . . . . . . . Robot Schematics Acquired . | . . . . . . . . . . . . . . Robots Built . | . . . . . . . . . . . . . . Authchips . | . . . . . . . . . . . . . . Time . | . . . . . . . . . . . . . . Total Robot Build Rating . | . . . . . . . . . . . . . . Part Schematics Acquired . | . . . . . . . . . . . . . . Parts Built . | . . . . . . . . . . . . . . Authchips . | . . . . . . . . . . . . . . Time . | . . . . . . . . . . . . . . Total Part Build Rating . | . . . . . . . . . . . . . . Parts Repaired . | . . . . . . . . . . . . . . Time . | . . . . . . . . . . . . . . Parts Recycled . | . . . . . . . . . . . . . . Recycled Matter . | . . . . . . . . . . . . . . Retrieved Matter . | . . . . . . . . . . . . . . Retrieved Components . | . . . . . . . . . . . . . . Parts Scanalyzed . | . . . . . . . . . . . . . . Part Schematics Acquired . | . . . . . . . . . . . . . . Parts Damaged . | . . . . . . . . . . . . . . Bothacking | -11 -10 -10 -10 -9 -8 -8 -8 -8 -6 -5 -5 -4 -3 ------------ Run | Yrd Mat Min Exi Min Mat Sto Rec Scr Fac Fac Ext Fac Res Used RIF Installer . | . . . . . . . . . . . . . . Robots Hacked . | . . . . . . . . . . . . . . Non-combat . | . . . . . . . . . . . . . . Combat . | . . . . . . . . . . . . . . Robot Hacks Applied . | . . . . . . . . . . . . . . Relay Couplers Released . | . . . . . . . . . . . . . . Fabnet Peak Effective % . | . . . . . . . . . . . . . . Robots Rewired . | . . . . . . . . . . . . . . Allies Hacked . | . . . . . . . . . . . . . . Hacks Repelled . | . . . . . . . . . . . . . . Allies | -11 -10 -10 -10 -9 -8 -8 -8 -8 -6 -5 -5 -4 -3 -------- Run | Yrd Mat Min Exi Min Mat Sto Rec Scr Fac Fac Ext Fac Res Total Allies 3 | . . . . 3 . . . . . . . . . Largest Group 3 | . . . . 3 3 3 . . . . . . . Highest-Rated Group 40 | . . . . 40 40 40 . . . . . . . Highest-Rated Ally 16 | . . . . 16 16 16 . . . . . . . Total Orders 5 | . . . . . 2 . . . 3 . . . . EXPLORE 4 | . . . . . 1 . . . 3 . . . . RETURN 1 | . . . . . 1 . . . . . . . . Ally Attacks 25 | . . . . 7 . 15 . . 3 . . . . Total Damage 221 | . . . . 80 . 126 . . 15 . . . . Kills 5 | . . . . 4 . 1 . . . . . . . Allies Corrupted 1 | . . . . . . . . . 1 . . . . Allies Melted . | . . . . . . . . . . . . . . Intel | -11 -10 -10 -10 -9 -8 -8 -8 -8 -6 -5 -5 -4 -3 ------- Run | Yrd Mat Min Exi Min Mat Sto Rec Scr Fac Fac Ext Fac Res Active Infowar (turns) 1319 | . 498 . 3 . . 3 . . 54 182 171 26 382 Optics 801 | . . . . . . . . . 40 182 171 26 382 Seismic 498 | . 498 . . . . . . . . . . . . Cloaking 20 | . . . 3 . . 3 . . 14 . . . . Robot Analysis Total . | . . . . . . . . . . . . . . Derelict Logs Recovered 1 | . . 1 . . . . . . . . . . . Drone Launches 6 | . . . . . 1 . . . 5 . . . . Drone Recoveries 4 | . . . . . 1 . . . 3 . . . . Exploration | -11 -10 -10 -10 -9 -8 -8 -8 -8 -6 -5 -5 -4 -3 ------------- Run | Yrd Mat Min Exi Min Mat Sto Rec Scr Fac Fac Ext Fac Res Turns Passed 11758 | 149 2260 1488 154 570 158 1936 791 2494 997 182 171 26 382 Spaces Moved 6459 | 99 1248 751 235 182 37 580 298 959 392 393 477 73 735 Core 521 | 25 2 44 120 52 17 . . . 97 94 . . 70 Treads 1968 | . 968 707 . . . 292 . . 1 . . . . Legs 1919 | 74 278 . . . . 172 298 959 138 . . . . Wheels . | . . . . . . . . . . . . . . Hover . | . . . . . . . . . . . . . . Flight 2051 | . . . 115 130 20 116 . . 156 299 477 73 665 Fastest Speed 34 | 50 120 50 40 120 350 190 190 190 50 34 34 35 35 Average Speed 162 | 102 151 176 63 314 353 295 250 258 192 39 35 35 36 Slowest Speed 800 | 120 160 240 120 800 357 520 260 260 500 200 40 35 50 Overloaded Moves . | . . . . . . . . . . . . . . Propulsion Burnouts . | . . . . . . . . . . . . . . Robots Hopped 21 | . . . . . . . . . . 2 5 . 14 Potential Cave-ins . | . . . . . . . . . . . . . . Cave-ins Triggered . | . . . . . . . . . . . . . . Exploration Rate (%) 43 | 6 95 92 60 44 4 71 55 53 14 11 76 2 26 Regions Visited 13 Branch Regions 7 Pre-discovered Areas 3 | . . 1 1 . . 1 . . . . . . . Known Exits Taken . | . . . . . . . . . . . . . . Unknown Exits Taken 13 | 1 1 1 1 1 1 1 1 1 1 1 1 1 . Scrap Searched 7 | . . 3 . 1 . . . 3 . . . . . Spaces Dug . | . . . . . . . . . . . . . . Terrain Destroyed 33 | . . 33 . . . . . . . . . . . Melee . | . . . . . . . . . . . . . . Projectile . | . . . . . . . . . . . . . . AOE 33 | . . 33 . . . . . . . . . . . Terrain Rammed . | . . . . . . . . . . . . . . Walls Destroyed . | . . . . . . . . . . . . . . Machines Disabled . | . . . . . . . . . . . . . . Actions | -11 -10 -10 -10 -9 -8 -8 -8 -8 -6 -5 -5 -4 -3 --------- Run | Yrd Mat Min Exi Min Mat Sto Rec Scr Fac Fac Ext Fac Res Total 7384 | 124 1469 857 239 186 66 727 331 974 613 418 473 72 835 Wait 525 | 1 94 39 . 1 20 75 23 5 146 14 . . 107 Move 6408 | 98 1247 750 234 181 36 579 297 958 391 388 468 72 709 Hop 17 | . . . . . . . . . . 2 3 . 12 Pick Up 100 | 8 26 14 2 3 3 12 2 6 12 7 1 . 4 Fast Attach . | . . . . . . . . . . . . . . Attach 61 | 6 9 4 3 . 6 4 . 2 18 6 1 . 2 Detach 7 | . . . . . . 1 2 . 4 . . . . Swap 21 | . 5 3 . 1 1 8 1 2 . . . . . Drop 41 | . 6 9 . . . . . 1 23 1 . . 1 Fire 202 | 11 82 36 . . . 48 6 . 19 . . . . Melee . | . . . . . . . . . . . . . . Ram . | . . . . . . . . . . . . . . Kick . | . . . . . . . . . . . . . . Crush 2 | . . 2 . . . . . . . . . . . Escape Stasis . | . . . . . . . . . . . . . . Rewire . | . . . . . . . . . . . . . . Trap . | . . . . . . . . . . . . . . Miscellaneous . | . . . . . . . . . . . . . . Route ------- -11/Scrapyard -10/Materials (discovered 5 exits: [*Mat x3] / [*Min x2]) -10/Mines (discovered 4 exits: [*Mat x2] / *Exi / [*Sub]) -10/Exiles -9/Mines (discovered 2 exits: [*Mat x2]) -8/Materials -8/Storage (discovered 2 exits: [*Fac] / *Rec) -8/Recycling (discovered 2 exits: *Fac / *Scr) -8/Scraptown -6/Factory -5/Factory -5/Extension (discovered 2 exits: [*Fac] / [*Cet]) -4/Factory -3/Research History --------- Turn | Location | Event 2 | -11/Scrapyard | Met Revision 17 8 | -11/Scrapyard | Discovered new exit (range 15) 150 | -11/Scrapyard | Entered Materials 310 | -10/Materials | Build established: Mutant 386 | -10/Materials | Discovered new exit (range 5) 530 | -10/Materials | Discovered new exit (range 15) 1022 | -10/Materials | Discovered new exit (range 15) 1024 | -10/Materials | Discovered new exit (range 14) 1583 | -10/Materials | Discovered new exit (range 15) 2410 | -10/Materials | Entered Mines 2417 | -10/Mines | Received a Rocket Launcher from a helpful Derelict 2437 | -10/Mines | Discovered new exit (range 12) 2682 | -10/Mines | Core integrity fell below 50% 2730 | -10/Mines | Discovered new exit (range 8) 3095 | -10/Mines | Discovered new exit (range 5) 3218 | -10/Mines | Assembled infested the area 3271 | -10/Mines | Learned location of Storage (-8) 3682 | -10/Mines | Discovered new exit (range 5) 3769 | -10/Mines | Core integrity fell below 20% 3876 | -10/Mines | Released all parts (6) 3898 | -10/Mines | Entered Exiles 3911 | -10/Exiles | Met 8R-AWN 3920 | -10/Exiles | Met EX-HEX 3933 | -10/Exiles | Met EX-BIN 3940 | -10/Exiles | Aligned with FarCom system 3941 | -10/Exiles | Given EX-Vault access code 3955 | -10/Exiles | Opened EX-Vault 3960 | -10/Exiles | Found Cloak of Protection 3969 | -10/Exiles | Warned to stay clear of 0b10 Research branches 3981 | -10/Exiles | Met EX-DEC 3983 | -10/Exiles | Learned location of Zion (-7) 4043 | -10/Exiles | Discovered new exit (range 10) 4052 | -10/Exiles | Left Exiles lab with Cloak of Protection 4052 | -10/Exiles | Entered Mines 4150 | -9/Mines | Assisted by bots powering up and referring to "LRC-V3" 4188 | -9/Mines | Found the Drone Emporium 4194 | -9/Mines | Found Prototype Device 4332 | -9/Mines | Discovered new exit (range 10) 4380 | -9/Mines | Discovered new exit (range 4) 4622 | -9/Mines | Entered Materials 4622 | -8/Materials | Accompanied by 3 allies 4622 | -8/Materials | Evolved 4 slots: Utility x4 4640 | -8/Materials | Identified Splice Drone Bay 4645 | -8/Materials | Discovered new exit (range 11) 4780 | -8/Materials | Entered Storage 4780 | -8/Storage | Accompanied by 3 allies 5447 | -8/Storage | Learned location of Armory (-3) 5549 | -8/Storage | Build established: Scavenger-Mutant 5601 | -8/Storage | Discovered new exit (range 5) 6708 | -8/Storage | Used back door to open Recycling access 6708 | -8/Storage | Discovered new exit (range 4) 6716 | -8/Storage | Entered Recycling 7077 | -8/Recycling | Discovered new exit (range 16) 7090 | -8/Recycling | Build established: Mutant 7402 | -8/Recycling | Scanned before Scraplab entrance 7456 | -8/Recycling | Entered Scraplab 7503 | -8/Recycling | Discovered new exit (range 2) 7507 | -8/Recycling | Entered Scraptown 7511 | -8/Scraptown | System corruption cleaned by C-Scrubber 8168 | -8/Scraptown | Discovered new exit (range 7) 8482 | -8/Scraptown | Visited SPCMW 8617 | -8/Scraptown | Visited Spacefarers 8768 | -8/Scraptown | Visited Symbiants 9407 | -8/Scraptown | Visited Cyclists 9493 | -8/Scraptown | Visited TADAMA 9738 | -8/Scraptown | Turned away by UFD registrar 10001 | -8/Scraptown | Entered Factory 10001 | -6/Factory | Evolved 4 slots: Propulsion x2, Utility x2 10975 | -6/Factory | Lost 7 parts (4n2u1w) 10994 | -6/Factory | Discovered new exit (range 8) 10998 | -6/Factory | Entered another Factory area 10998 | -5/Factory | Evolved 2 slots: Power x1, Utility x1 11163 | -5/Factory | Discovered new exit (range 19) 11180 | -5/Factory | Entered Extension 11209 | -5/Extension | Spotted B-75 Beast 11211 | -5/Extension | Lost 3 parts (1p1n1u) 11213 | -5/Extension | Spotted B-75 Beast 11279 | -5/Extension | Lost 4 parts (1p2n1u) 11323 | -5/Extension | Core integrity fell below 50% 11343 | -5/Extension | Discovered new exit (range 21) 11343 | -5/Extension | Discovered new exit (range 21) 11351 | -5/Extension | Entered Factory 11351 | -4/Factory | Evolved 2 slots: Power x1, Utility x1 11359 | -4/Factory | Discovered new exit (range 15) 11377 | -4/Factory | Entered Research 11377 | -3/Research | Evolved 2 slots: Utility x2 11680 | -3/Research | Core integrity fell below 50% 11725 | -3/Research | Core integrity fell below 20% 11759 | -3/Research | Destroyed by S-43 Plague with Heavy Machine Gun Last Messages --------------- (Destroy). 11683_ K-01 Serf destroyed. 11685_ Remote Datajack destroyed. 11686_ P-80 Master resets S-43 Plague, system corruption cleaned. 11686_ K-01 Serf collects debris. 11690_ K-01 Serf destroyed. 11702_ Acquired Phase Shifter. 11719_ K-01 Serf collects debris. 11723_ Penetrated by Slug. 11723_ Imp. Cesium-ion Thruster destroyed. 11723_ U-05 Engineer destroyed. 11729_ TF Node disabled. 11729_ Adv. Sensor Array tumbles out of TF Node. 11729_ Adv. Signal Interpreter tumbles out of TF Node. 11739_ Faulty Electron Diverter destroyed. 11755_ ALERT: Potential suspicious activity detected, Programmers report to Research Zone 8Z. Map ----- +----------------------------------------------------+ | ?????????????????????????????????????????????????? | | ?????????????????????????????????????????????????? | | ?????????????????????????????????????????????????? | | ?????????????????????????????????????????????????? | | ?????????????????????????????????????????????????? | | ???# ??????????????????????????????????????????? | | ???# ??????????????????????????????????????????? | | ???# ??????????????????????????????????????????? | | ???# #?????????????????????????????????????????? | | ???# ?????????????????????????????????????????? | | ???+ ????????????????????BB???????????????????? | | ???# ????????????????????BB???????????????????? | | ???# #?????????????????????????????????????????? | | ???# #?????????????????????????????????????????? | | ???# #?????????????????????????????????????????? | | ???# #?????????????????????????????????????????? | | ???# #?????????????????????????????????????????? | | ???# +?????????????????????????????????????????? | | ???# #?????????????????????????????????????????? | | ???# #?????????????????????????????????????????? | | ???# #?????????????????????????????????????????? | | ???# ################################??????????? | | ???# #??????????? | | ???# s #??????????? | | ???# p s #??????????? | | ???# s @ t #??????????? | | #### ####################/######+####??????????? | | !## #?????????????????????????????????????????? | | ## #?????????????????????????????????????????? | | ! ## #?????????????????????????????????????????? | | ## #?????????????????????????????????????????? | | ## #?????????????????????????????????????????? | | ## #?????????????????????????????????????????? | | ## #?????????????????????????????????????????? | | [?# #?????????????????????????????????????????? | | ?# #?????????????????????????????????????????? | | +### +?????????????????????????????????????????? | | #?????????????????????????????????????????? | | #?????????????????????????????????????????? | | #?????????????????????????????????????????? | | ########?????????????????????????????????????????? | | ?????????????????????????????????????????????????? | | ?????????????????????????????????????????????????? | | ?????????????????????????????????????????????????? | | ?????????????????????????????????????????????????? | | ?????????????????????????????????????????????????? | | ?????????????????????????????????????????????????? | | ?????????????????????????????????????????????????? | | ?????????????????????????????????????????????????? | | ?????????????????????????????????????????????????? | +----------------------------------------------------+ Best States ------------- Heat Dissipation 46 Energy Generation 21 Energy Capacity 325 Matter Stores 300 Matter Capacity 300 Sight Range 22 Terrain Scan Density 10 Cloak Strength 5 Additional Mass Support 6 Armor Coverage 600 Propulsion Shielding 33 Evasion (%) 63 Launcher Accuracy 20 Core Analysis 6 Recoil Reduction 2 Offensive Hacking 10 Item Schematics ----------------- None Robot Schematics ------------------ None Fabricated ------------ Nothing Repaired ---------- Nothing Alien Tech Used ----------------- None Achievements -------------- Cya! Challenges ------------ None Game ------ Seed ExplosiveGravmagTorch Manual? 0 Play Time 00:54:19 Cumulative 19.7 hours Start 2025.10.12 @ 11:04:11 End 2025.10.12 @ 11:59:15 Sessions 1 Manual Loads 0 Difficulty Rogue Special Mode None Game No. 56 Rogue 56 Adventurer 0 Explorer 0 Win Type - Total 0 Types 0/0/0/0/0/0/0/0/0/0 Lore% 32 Gallery% 26 Achievement% 29 Wizard Run 0 Options --------- Layout 1 ASCII 0 Keyboard 0 Movement Numpad Keybinds 0 Fullscreen 1 Font 24/Smallcaps Map View 50x35 Zoom Use 0% Tactical HUD 1 Map Filters NONE Filters NONE Steam 1 RUN: 963972b2-fdfb-4db3-9bdc-11acd7a8a610